fUSD/lending_fUSD_20250911
["ID","MTS","AMOUNT","RATE_DAILY","PERIOD"]
[384928566,1757627527446,-1064.31,0.00029041,7]
[384928567,1757627527455,-1607.9,0.00029041,7]
[384928568,1757627527465,-618.96,0.00029041,7]
[384928569,1757627527475,-400.0,0.00029041,7]
[384928570,1757627527484,-400.0,0.00029041,7]
[384928571,1757627527493,-555.14,0.00029041,7]
[384928572,1757627527503,-400.0,0.00029041,7]
[384928573,1757627527512,-400.0,0.00029041,7]
[384928574,1757627527522,-8723.99,0.00029041,7]
[384928575,1757627527531,-400.0,0.00029041,7]
[384928576,1757627527540,-413.57,0.00029041,7]
[384928577,1757627527550,-10846.33,0.00029041,7]
[384928578,1757627527559,-2723.99,0.00029041,7]
[384928579,1757627527568,-2416.16,0.00029041,7]
[384928580,1757627527578,-215.93839045,0.00029041,7]
[384928581,1757627527587,-1251.69,0.00029041,7]
[384928582,1757627527597,-1588.95,0.00029041,7]
[384928583,1757627527606,-400.0,0.00029041,7]
[384928584,1757627527615,-3367.99,0.00029041,7]
[384928585,1757627527624,-571.98,0.00029041,7]
[384928586,1757627527634,-1485.57,0.00029041,7]
[384928587,1757627527643,-1511.45,0.00029041,7]
[384928588,1757627527652,-580.95,0.00029041,7]
[384928589,1757627527662,-1402.77,0.00029041,7]
[384928590,1757627527671,-2512.68,0.00029041,7]
[384928591,1757627527680,-400.0,0.00029041,7]
[384928592,1757627527689,-2129.92,0.00029041,7]
[384928593,1757627527699,-1100.85,0.00029041,7]
[384928594,1757627527708,-1468.07,0.00029041,7]
[384928595,1757627527717,-1235.68,0.00029041,7]
[384928596,1757627527726,-400.0,0.00029041,7]
[384928597,1757627527735,-400.0,0.00029041,7]
[384928598,1757627527745,-1148.27,0.00029041,7]
[384928599,1757627527755,-659.2,0.00029041,7]
[384928600,1757627527764,-677.06,0.00029041,7]
[384928601,1757627527773,-4042.54,0.00029041,7]
[384928602,1757627527782,-1478.86,0.00029041,7]
[384928603,1757627527791,-596.08,0.00029041,7]
[384928604,1757627527801,-3121.58,0.00029041,7]
[384928605,1757627527811,-1327.37,0.00029041,7]
[384928606,1757627527820,-2116.65,0.00029041,7]
[384928607,1757627527830,-412.03,0.00029041,7]
[384928608,1757627527839,-400.0,0.00029041,7]
[384928609,1757627527848,-1719.45,0.00029041,7]
[384928610,1757627527857,-1710.12,0.00029041,7]
[384928611,1757627527866,-1450.37,0.00029041,7]
[384928612,1757627527876,-1987.08,0.00029041,7]
[384928613,1757627527885,-1612.89,0.00029041,7]
[384928614,1757627527894,-513.59,0.00029041,7]
[384928615,1757627527904,-836.01,0.00029041,7]
[384928616,1757627527914,-3415.13,0.00029041,7]
[384928617,1757627527923,-400.0,0.00029041,7]
[384928618,1757627527932,-1717.5,0.00029041,7]
[384928619,1757627527941,-660.1,0.00029041,7]
[384928620,1757627527950,-2173.97,0.00029041,7]
[384928621,1757627527960,-3404.31,0.00029041,7]
[384928622,1757627527970,-2122.67,0.00029041,7]
[384928623,1757627527980,-400.0,0.00029041,7]
[384928624,1757627527989,-501.87624187,0.00029041,2]
[384928625,1757627527999,-1824.59,0.00029041,7]
[384928626,1757627528009,-2940.84,0.00029041,7]
[384928627,1757627528019,-400.0,0.00029041,7]
[384928628,1757627528029,-400.0,0.00029041,7]
[384928629,1757627528039,-2046.07,0.00029041,7]
[384928630,1757627528049,-1664.51,0.00029041,7]
[384928631,1757627528059,-400.0,0.00029041,7]
[384928632,1757627528068,-400.0,0.00029041,7]
[384928633,1757627528079,-1145.88,0.00029041,7]
[384928634,1757627528088,-2668.52,0.00029041,7]
[384928635,1757627528098,-400.0,0.00029041,7]
[384928636,1757627528107,-400.0,0.00029041,7]
[384928637,1757627528116,-1418.74,0.00029041,7]
[384928638,1757627528126,-1033.62,0.00029041,7]
[384928639,1757627528135,-400.0,0.00029041,7]
[384928640,1757627528144,-857.22,0.00029041,7]
[384928641,1757627528155,-400.0,0.00029041,7]
[384928642,1757627528164,-400.0,0.00029041,7]
[384928643,1757627528174,-400.0,0.00029041,7]
[384928644,1757627528183,-1768.54,0.00029041,7]
[384928645,1757627528192,-1785.27,0.00029041,7]
[384928646,1757627528202,-1525.18,0.00029041,7]
[384928647,1757627528211,-3561.21,0.00029041,7]
[384928648,1757627528220,-412.28,0.00029041,7]
[384928649,1757627528230,-1709.68,0.00029041,7]
[384928650,1757627528240,-400.0,0.00029041,7]
[384928651,1757627528250,-400.0,0.00029041,7]
[384928652,1757627528260,-440.38,0.00029041,7]
[384928653,1757627528269,-2318.27,0.00029041,7]
[384928654,1757627528278,-1281.61,0.00029041,7]
[384928655,1757627528287,-2011.65,0.00029041,7]
[384928656,1757627528296,-746.18,0.00029041,7]
[384928657,1757627528305,-1166.63,0.00029041,7]
[384928658,1757627528314,-400.0,0.00029041,7]
[384928659,1757627528323,-400.0,0.00029041,7]
[384928660,1757627528335,-400.0,0.00029041,7]
[384928661,1757627528344,-1306.49,0.00029041,7]
[384928662,1757627528353,-1825.7,0.00029041,7]
[384928663,1757627528362,-762.39,0.00029041,7]
[384928664,1757627528371,-3800.69,0.00029041,7]
[384928665,1757627528381,-400.0,0.00029041,7]
[384928666,1757627528390,-2183.28,0.00029041,7]
[384928667,1757627528399,-631.92,0.00029041,7]
[384928668,1757627528409,-2113.02,0.00029041,7]
[384928669,1757627528418,-412.34,0.00029041,7]
[384928670,1757627528428,-478.43,0.00029041,7]
[384928671,1757627528437,-764.83,0.00029041,7]
[384928672,1757627528446,-658.91,0.00029041,7]
[384928673,1757627528456,-2212.12,0.00029041,7]
[384928674,1757627528465,-400.0,0.00029041,7]
[384928675,1757627528475,-1409.6,0.00029041,7]
[384928676,1757627528484,-2621.3,0.00029041,7]
[384928677,1757627528493,-1935.52,0.00029041,7]
[384928678,1757627528502,-400.0,0.00029041,7]
[384928679,1757627528511,-792.93,0.00029041,7]
[384928680,1757627528520,-1641.57,0.00029041,7]
[384928681,1757627528529,-400.0,0.00029041,7]
[384928682,1757627528538,-2511.53,0.00029041,7]
[384928683,1757627528547,-400.0,0.00029041,7]
[384928684,1757627528556,-415.19,0.00029041,7]
[384928685,1757627528565,-400.0,0.00029041,7]
[384928686,1757627528574,-1999.25,0.00029041,7]
[384928687,1757627528583,-400.0,0.00029041,7]
[384928688,1757627528592,-935.63,0.00029041,7]
[384928689,1757627528601,-561.05,0.00029041,7]
[384928690,1757627528610,-1937.06,0.00029041,7]
[384928691,1757627528620,-622.55,0.00029041,7]
[384928692,1757627528629,-605.95,0.00029041,7]
[384928693,1757627528639,-625.67,0.00029041,7]
[384928694,1757627528649,-2434.87,0.00029041,7]
[384928695,1757627528658,-1967.02,0.00029041,7]
[384928696,1757627528667,-2064.83,0.00029041,7]
[384928697,1757627528677,-5081.16,0.00029041,7]
[384928698,1757627528686,-400.0,0.00029041,7]
[384928699,1757627528696,-2357.52,0.00029041,7]
[384928700,1757627528705,-1918.79,0.00029041,7]
[384928701,1757627528714,-688.97,0.00029041,7]
[384928702,1757627528724,-2563.41,0.00029041,7]
[384928703,1757627528733,-400.0,0.00029041,7]
[384928704,1757627528742,-400.0,0.00029041,7]
[384928705,1757627528751,-1378.05,0.00029041,7]
[384928706,1757627528760,-1782.99,0.00029041,7]
[384928707,1757627528769,-752.99,0.00029041,7]
[384928708,1757627528779,-2353.03,0.00029041,7]
[384928709,1757627528788,-400.0,0.00029041,7]
[384928710,1757627528797,-1193.85,0.00029041,7]
[384928711,1757627528808,-400.0,0.00029041,7]
[384928712,1757627528818,-1178.69,0.00029041,7]
[384928713,1757627528827,-1935.24,0.00029041,7]
[384928714,1757627528950,-1221.61,0.00029041,7]
[384928715,1757627528967,-429.41,0.00029041,7]
[384928716,1757627528976,-459.96,0.00029041,7]
[384928717,1757627528986,-2252.22,0.00029041,7]
[384928718,1757627528996,-735.02,0.00029041,7]
[384928719,1757627529005,-1279.89,0.00029041,7]
[384928720,1757627529015,-400.0,0.00029041,7]
[384928721,1757627529024,-2407.5,0.00029041,7]
[384928722,1757627529034,-2161.65,0.00029041,7]
[384928723,1757627529043,-1425.68,0.00029041,7]
[384928724,1757627529053,-1362.92,0.00029041,7]
[384928725,1757627529062,-1095.6,0.00029041,7]
[384928726,1757627529072,-2476.85,0.00029041,7]
[384928727,1757627529081,-1991.02,0.00029041,7]
[384928728,1757627529091,-400.0,0.00029041,7]
[384928729,1757627529100,-2430.43,0.00029041,7]
[384928730,1757627529110,-400.0,0.00029041,7]
[384928731,1757627529119,-465.81,0.00029041,7]
[384928732,1757627529129,-2085.01,0.00029041,7]
[384928733,1757627529139,-2781.72,0.00029041,7]
[384928734,1757627529148,-1977.7,0.00029041,7]
[384928735,1757627529157,-400.0,0.00029041,7]
[384928736,1757627529166,-400.0,0.00029041,7]
[384928737,1757627529175,-2696.49,0.00029041,7]
[384928738,1757627529184,-430.58,0.00029041,7]
[384928739,1757627529194,-3938.86,0.00029041,7]
[384928740,1757627529203,-2712.62,0.00029041,7]
[384928741,1757627529212,-452.60399977,0.00029041,7]
[384928742,1757627529222,-4392.91,0.00029041,7]
[384928743,1757627529231,-1492.88,0.00029041,7]
[384928744,1757627529240,-400.0,0.00029041,7]
[384928745,1757627529250,-1464.34,0.00029041,7]
[384928746,1757627529259,-591.66,0.00029041,7]
[384928747,1757627529269,-400.0,0.00029041,7]
[384928748,1757627529278,-400.0,0.00029041,7]
[384928749,1757627529287,-666.94,0.00029041,7]
[384928750,1757627529297,-1806.44,0.00029041,7]
[384928751,1757627529307,-400.0,0.00029041,7]
[384928752,1757627529316,-1981.45,0.00029041,7]
[384928753,1757627529326,-3388.27,0.00029041,7]
[384928754,1757627529340,-2436.65,0.00029041,7]
[384928755,1757627529350,-881.67,0.00029041,7]
[384928756,1757627529359,-406.24,0.00029041,7]
[384928757,1757627529369,-418.44583361,0.00029041,7]
[384928758,1757627529378,-1172.06,0.00029041,7]
[384928759,1757627529388,-780.5,0.00029041,7]
[384928760,1757627529397,-554.15,0.00029041,7]
[384928761,1757627529407,-4294.22,0.00029041,7]
[384928762,1757627529417,-2452.85,0.00029041,7]
[384928763,1757627529427,-438.53,0.00029041,7]
[384928764,1757627529437,-604.66,0.00029041,7]
[384928765,1757627529446,-534.25,0.00029041,7]
[384928766,1757627529455,-2886.24,0.00029041,7]
[384928767,1757627529465,-400.0,0.00029041,7]
[384928768,1757627529474,-3147.12,0.00029041,7]
[384928769,1757627529484,-400.0,0.00029041,7]
[384928770,1757627529493,-400.0,0.00029041,7]
[384928771,1757627529503,-2500.66,0.00029041,7]
[384928772,1757627529512,-1752.06,0.00029041,7]
[384928773,1757627529521,-400.0,0.00029041,7]
[384928774,1757627529531,-1536.25,0.00029041,7]
[384928775,1757627529540,-3110.75,0.00029041,7]
[384928776,1757627529549,-3514.52,0.00029041,7]
[384928777,1757627529559,-1998.85,0.00029041,7]
[384928778,1757627529568,-851.92,0.00029041,7]
[384928779,1757627529577,-2234.85,0.00029041,7]
[384928780,1757627529586,-1639.17,0.00029041,7]
[384928781,1757627529596,-2407.64,0.00029041,7]
[384928782,1757627529606,-400.0,0.00029041,7]
[384928783,1757627529615,-1046.34,0.00029041,7]
[384928784,1757627529624,-1220.02,0.00029041,7]
[384928785,1757627529634,-2770.33,0.00029041,7]
[384928786,1757627529644,-482.39,0.00029041,7]
[384928787,1757627529654,-436.15,0.00029041,7]
[384928788,1757627529663,-1846.46,0.00029041,7]
[384928789,1757627529672,-400.0,0.00029041,7]
[384928790,1757627529682,-400.0,0.00029041,7]
[384928791,1757627529692,-2184.88,0.00029041,7]
[384928792,1757627529701,-1730.33,0.00029041,7]
[384928793,1757627529711,-1786.28,0.00029041,7]
[384928794,1757627529720,-1957.68,0.00029041,7]
[384928795,1757627529730,-1265.01,0.00029041,7]
[384928796,1757627529739,-407.19,0.00029041,7]
[384928797,1757627529748,-688.3,0.00029041,7]
[384928798,1757627529758,-2703.11,0.00029041,7]
[384928799,1757627529767,-678.34,0.00029041,7]
[384928800,1757627529777,-2568.73,0.00029041,7]
[384928801,1757627529787,-3106.86,0.00029041,7]
[384928802,1757627529796,-1591.84,0.00029041,7]
[384928803,1757627529806,-423.35,0.00029041,7]
[384928804,1757627529815,-2512.36,0.00029041,7]
[384928805,1757627529825,-2358.62,0.00029041,7]
[384928806,1757627529834,-655.76,0.00029041,7]
[384928807,1757627529843,-655.88,0.00029041,7]
[384928808,1757627529853,-1989.93,0.00029041,7]
[384928809,1757627529862,-400.0,0.00029041,7]
[384928810,1757627529872,-6625.15,0.00029041,7]
[384928811,1757627529882,-400.0,0.00029041,7]
[384928812,1757627529891,-1565.73,0.00029041,7]
[384928813,1757627529901,-2433.07,0.00029041,7]
[384928814,1757627529911,-400.0,0.00029041,7]
[384928815,1757627529920,-1949.62,0.00029041,7]
[384928816,1757627529930,-2320.6,0.00029041,7]
[384928817,1757627529939,-400.0,0.00029041,7]
[384928818,1757627529949,-2218.78,0.00029041,7]
[384928819,1757627529959,-1700.41,0.00029041,7]
[384928820,1757627529969,-581.88,0.00029041,7]
[384928821,1757627529978,-3743.48,0.00029041,7]
[384928822,1757627529987,-601.83,0.00029041,7]
[384928823,1757627529997,-400.0,0.00029041,7]
[384928824,1757627530007,-2332.54,0.00029041,7]
[384928825,1757627530016,-400.0,0.00029041,7]
[384928826,1757627530026,-2249.08,0.00029041,7]
[384928827,1757627530035,-726.15,0.00029041,7]
[384928828,1757627530044,-2742.88,0.00029041,7]
[384928829,1757627530054,-877.79,0.00029041,7]
[384928830,1757627530063,-2125.99,0.00029041,7]
[384928831,1757627530073,-400.0,0.00029041,7]
[384928832,1757627530082,-400.0,0.00029041,7]
[384928833,1757627530092,-1691.78,0.00029041,7]
[384928834,1757627530102,-2192.92,0.00029041,7]
[384928835,1757627530112,-2438.57,0.00029041,7]
[384928836,1757627530121,-1723.17,0.00029041,7]
[384928837,1757627530131,-2371.58,0.00029041,7]
[384928838,1757627530140,-882.4,0.00029041,7]
[384928839,1757627530150,-2985.19,0.00029041,7]
[384928840,1757627530159,-2972.96,0.00029041,7]
[384928841,1757627530168,-512.39,0.00029041,7]
[384928842,1757627530178,-849.58,0.00029041,7]
[384928843,1757627530187,-3150.88,0.00029041,7]
[384928844,1757627530197,-2678.71,0.00029041,7]
[384928845,1757627530206,-1003.52,0.00029041,7]
[384928846,1757627530215,-764.35,0.00029041,7]
[384928847,1757627530225,-2234.94,0.00029041,7]
[384928848,1757627530235,-2578.26,0.00029041,7]
[384928849,1757627530244,-1462.94,0.00029041,7]
[384928850,1757627530254,-1828.11,0.00029041,7]
[384928851,1757627530263,-470.08,0.00029041,7]
[384928852,1757627530273,-1307.56,0.00029041,7]
[384928853,1757627530283,-400.0,0.00029041,7]
[384928854,1757627530292,-1772.99,0.00029041,7]
[384928855,1757627530301,-2097.33,0.00029041,7]
[384928856,1757627530311,-933.0,0.00029041,7]
[384928857,1757627530320,-952.28,0.00029041,7]
[384928858,1757627530329,-1662.68,0.00029041,7]
[384928859,1757627530341,-610.96,0.00029041,7]
[384928860,1757627530351,-7841.89,0.00029041,7]
[384928861,1757627530360,-400.0,0.00029041,7]
[384928862,1757627530370,-400.0,0.00029041,7]
[384928863,1757627530379,-400.0,0.00029041,7]
[384928864,1757627530388,-1587.28,0.00029041,7]
[384928865,1757627530398,-1604.78,0.00029041,7]
[384928866,1757627530407,-2174.86,0.00029041,7]
[384928867,1757627530417,-11061.06,0.00029041,7]
[384928868,1757627530427,-1272.03,0.00029041,7]
[384928869,1757627530436,-400.0,0.00029041,7]
[384928870,1757627530446,-596.32,0.00029041,7]
[384928871,1757627530455,-565.46,0.00029041,7]
[384928872,1757627530465,-2131.53,0.00029041,7]
[384928873,1757627530475,-2498.42,0.00029041,7]
[384928874,1757627530484,-6488.57,0.00029041,7]
[384928875,1757627530494,-5525.7,0.00029041,7]
[384928876,1757627530504,-1601.69,0.00029041,7]
[384928877,1757627530513,-455.17,0.00029041,7]
[384928878,1757627530523,-1668.79,0.00029041,7]
[384928879,1757627530532,-1352.16,0.00029041,7]
[384928880,1757627530542,-11877.61,0.00029041,7]
[384928881,1757627530551,-400.0,0.00029041,7]
[384928882,1757627530561,-2986.7,0.00029041,7]
[384928883,1757627530571,-400.0,0.00029041,7]
[384928884,1757627530582,-400.0,0.00029041,7]
[384928885,1757627530592,-2328.89,0.00029041,7]
[384928886,1757627530606,-4724.84,0.00029041,7]
[384928887,1757627530616,-400.0,0.00029041,7]
[384928888,1757627530626,-2071.12,0.00029041,7]
[384928889,1757627530636,-3292.32,0.00029041,7]
[384928890,1757627530646,-400.0,0.00029041,7]
[384928891,1757627530657,-400.0,0.00029041,7]
[384928892,1757627530667,-657.95,0.00029041,7]
[384928893,1757627530677,-2017.2,0.00029041,7]
[384928894,1757627530688,-2362.15,0.00029041,7]
[384928895,1757627530698,-1981.94,0.00029041,7]
[384928896,1757627530708,-914.7,0.00029041,7]
[384928897,1757627530718,-710.2,0.00029041,7]
[384928898,1757627530728,-431.89468966,0.00029041,7]
[384928899,1757627530738,-847.93,0.00029041,7]
[384928900,1757627530748,-1045.52,0.00029041,7]
[384928901,1757627530758,-752.72,0.00029041,7]
[384928902,1757627530768,-2021.8,0.00029041,7]
[384928903,1757627530778,-2367.19,0.00029041,7]
[384928904,1757627530788,-1204.45,0.00029041,7]
[384928905,1757627530799,-1922.67,0.00029041,7]
[384928906,1757627530808,-2147.9,0.00029041,7]
[384928907,1757627530818,-400.0,0.00029041,7]
[384928908,1757627530828,-610.19,0.00029041,7]
[384928909,1757627530837,-737.4,0.00029041,7]
[384928910,1757627530847,-2005.27,0.00029041,7]
[384928911,1757627530858,-2282.8,0.00029041,7]
[384928912,1757627530868,-868.86,0.00029041,7]
[384928913,1757627530878,-264.26298421,0.00029041,7]
[384928914,1757627530888,-2067.86,0.00029041,7]
[384928915,1757627530898,-1662.86,0.00029041,7]
[384928916,1757627530908,-339.78,0.00029041,7]
[384928917,1757627530918,-581.46,0.00029041,7]
[384928918,1757627530928,-973.3,0.00029041,7]
[384928919,1757627530938,-2104.81,0.00029041,7]
[384928920,1757627530948,-901.74,0.00029041,7]
[384928921,1757627530958,-1564.75,0.00029041,7]
[384928922,1757627530968,-3042.61,0.00029041,7]
[384928923,1757627530978,-633.32,0.00029041,7]
[384928924,1757627530988,-400.0,0.00029041,7]
[384928925,1757627530998,-406.9,0.00029041,7]
[384928926,1757627531008,-2798.29,0.00029041,7]
[384928927,1757627531018,-473.92,0.00029041,7]
[384928928,1757627531028,-400.0,0.00029041,7]
[384928929,1757627531038,-1232.08,0.00029041,7]
[384928930,1757627531048,-825.48,0.00029041,7]
[384928931,1757627531058,-1649.61,0.00029041,7]
[384928932,1757627531068,-400.0,0.00029041,7]
[384928933,1757627531078,-400.0,0.00029041,7]
[384928934,1757627531088,-401.49,0.00029041,7]
[384928935,1757627531098,-493.86,0.00029041,7]
[384928936,1757627531107,-2428.81,0.00029041,7]
[384928937,1757627531117,-545.25,0.00029041,7]
[384928938,1757627531127,-3292.07,0.00029041,7]
[384928939,1757627531137,-400.0,0.00029041,7]
[384928940,1757627531561,-1770.26,0.00029041,7]
[384928941,1757627531575,-400.0,0.00029041,7]
[384928942,1757627531585,-575.7,0.00029041,7]
[384928943,1757627531595,-400.0,0.00029041,7]
[384928944,1757627531606,-1537.35,0.00029041,7]
[384928945,1757627531615,-2235.0,0.00029041,7]
[384928946,1757627531625,-400.0,0.00029041,7]
[384928947,1757627531635,-4315.46,0.00029041,7]
[384928948,1757627531645,-2043.23,0.00029041,7]
[384928949,1757627531657,-542.72,0.00029041,7]
[384928950,1757627531667,-497.85,0.00029041,7]
[384928951,1757627531677,-400.0,0.00029041,7]
[384928952,1757627531687,-774.82,0.00029041,7]
[384928953,1757627531697,-2030.44,0.00029041,7]
[384928954,1757627531707,-444.49,0.00029041,7]
[384928955,1757627531716,-400.0,0.00029041,7]
[384928956,1757627531726,-2457.19,0.00029041,7]
[384928957,1757627531736,-400.0,0.00029041,7]
[384928958,1757627531746,-2221.42,0.00029041,7]
[384928959,1757627531756,-2267.83,0.00029041,7]
[384928960,1757627531766,-400.0,0.00029041,7]
[384928961,1757627531776,-400.0,0.00029041,7]
[384928962,1757627531786,-400.0,0.00029041,7]
[384928963,1757627531796,-1381.33,0.00029041,7]
[384928964,1757627531806,-977.79,0.00029041,7]
[384928965,1757627531816,-400.0,0.00029041,7]
[384928966,1757627531826,-596.22,0.00029041,7]
[384928967,1757627531836,-2044.64,0.00029041,7]
[384928968,1757627531845,-400.0,0.00029041,7]
[384928969,1757627531855,-1597.41,0.00029041,7]
[384928970,1757627531865,-1990.61,0.00029041,7]
[384928971,1757627531875,-400.0,0.00029041,7]
[384928972,1757627531885,-1787.37,0.00029041,7]
[384928973,1757627531895,-256.23390922,0.00029058,2]
[384928974,1757627531904,-350.0,0.00029068,5]
[384928975,1757627531914,-1158.89224222,0.00029068,5]
[384928976,1757627531924,-150.0,0.00029073,5]
[384928977,1757627531934,-1680.0,0.00029095,2]
[384928978,1757627531944,-200.0,0.000291,7]
[384928979,1757627531953,-390.0,0.00029117,2]
[384928980,1757627531963,-161.48,0.00029128,2]
[384928981,1757627531972,-561.0,0.00029132,2]
[384928982,1757627531982,-364.5,0.00029152,2]
[384928983,1757627531991,-767.42320048,0.00029215,2]
[384928984,1757627532001,-1062.669359,0.00029215,2]
[384928985,1757627532011,-194.42528,0.00029225,2]
[384928986,1757627532021,-194.22,0.00029225,2]
[384928987,1757627532031,-390.0,0.00029249,2]
[384928988,1757627532040,-166.45700361,0.0002927,15]
[384928989,1757627532050,-20000.0,0.000293,5]
[384928990,1757627532059,-168.0,0.00029308,2]
[384928991,1757627532069,-153.02,0.00029314,2]
[384928992,1757627532079,-153.02,0.00029314,2]
[384928993,1757627532088,-153.02,0.00029314,2]
[384928994,1757627532098,-153.02,0.00029314,2]
[384928995,1757627532107,-153.02,0.00029314,2]
[384928996,1757627532117,-153.02,0.00029314,2]
[384928997,1757627532127,-153.02,0.00029314,2]
[384928998,1757627532136,-153.02,0.00029314,2]
[384928999,1757627532146,-153.02,0.00029314,2]
[384929000,1757627532157,-153.02,0.00029314,2]
[384929001,1757627532166,-500.0,0.00029315,7]
[384929002,1757627532176,-500.0,0.00029315,7]
[384929003,1757627532186,-500.0,0.00029315,7]
[384929004,1757627532196,-253.21820815,0.00029315,7]
[384929005,1757627532206,-500.0,0.00029315,7]
[384929006,1757627532215,-252.06581836,0.00029315,7]
[384929007,1757627532225,-150.0,0.00029315,7]
[384929008,1757627532234,-500.0,0.00029315,7]
[384929009,1757627532244,-500.0,0.00029315,2]
[384929010,1757627532254,-500.0,0.00029315,7]
[384929011,1757627532264,-150.0,0.00029315,2]
[384929012,1757627532274,-500.0,0.00029315,7]
[384929013,1757627532284,-3492.0,0.00029315,7]
[384929014,1757627532293,-400.0,0.00029315,7]
[384929015,1757627532303,-400.0,0.00029315,7]
[384929016,1757627532312,-2430.85,0.00029315,7]
[384929017,1757627532322,-537.34,0.00029315,7]
[384929018,1757627532332,-400.0,0.00029315,7]
[384929019,1757627532346,-436.24,0.00029315,7]
[384929020,1757627532356,-622.97,0.00029315,7]
[384929021,1757627532366,-400.0,0.00029315,7]
[384929022,1757627532376,-602.77,0.00029315,7]
[384929023,1757627532386,-1543.01,0.00029315,7]
[384929024,1757627532396,-400.0,0.00029315,7]
[384929025,1757627532407,-502.36,0.00029315,7]
[384929026,1757627532417,-474.04,0.00029315,7]
[384929027,1757627532428,-607.91,0.00029315,7]
[384929028,1757627532437,-254.62845095,0.00029315,7]
[384929029,1757627532447,-229.40951294,0.00029315,7]
[384929030,1757627532457,-422.29,0.00029315,7]
[384929031,1757627532467,-521.3,0.00029315,7]
[384929032,1757627532476,-578.72,0.00029315,7]
[384929033,1757627532486,-1554.85,0.00029315,7]
[384929034,1757627532495,-400.0,0.00029315,7]
[384929035,1757627532505,-400.0,0.00029315,7]
[384929036,1757627532514,-1824.84,0.00029315,7]
[384929037,1757627532524,-1088.02,0.00029315,7]
[384929038,1757627532533,-1205.28,0.00029315,7]
[384929039,1757627532543,-432.28,0.00029315,7]
[384929040,1757627532553,-400.0,0.00029315,7]
[384929041,1757627532563,-400.0,0.00029315,7]
[384929042,1757627532572,-832.75,0.00029315,7]
[384929043,1757627532582,-400.0,0.00029315,7]
[384929044,1757627532592,-904.85,0.00029315,7]
[384929045,1757627532601,-685.8,0.00029315,7]
[384929046,1757627532611,-517.06,0.00029315,7]
[384929047,1757627532621,-1008.26,0.00029315,7]
[384929048,1757627532631,-1113.46,0.00029315,7]
[384929049,1757627532640,-400.0,0.00029315,7]
[384929050,1757627532650,-655.45,0.00029315,7]
[384929051,1757627532659,-537.87354319,0.00029315,7]
[384929052,1757627532669,-400.0,0.00029315,7]
[384929053,1757627532679,-593.77,0.00029315,7]
[384929054,1757627532688,-807.62,0.00029315,7]
[384929055,1757627532698,-738.23,0.00029315,7]
[384929056,1757627532707,-567.18,0.00029315,7]
[384929057,1757627532717,-400.0,0.00029315,7]
[384929058,1757627532726,-400.0,0.00029315,7]
[384929059,1757627532737,-400.0,0.00029315,7]
[384929060,1757627532746,-464.24,0.00029315,7]
[384929061,1757627532756,-738.23,0.00029315,7]
[384929062,1757627532765,-400.0,0.00029315,7]
[384929063,1757627532775,-400.0,0.00029315,7]
[384929064,1757627532785,-588.76,0.00029315,7]
[384929065,1757627532794,-607.0,0.00029315,7]